bitfinex/quotes_SOLUSD_20250125
["timestamp","ask_amount","ask_price","bid_price","bid_amount"]
[1737838167667,0.03,258.57,258.48,23.8687]
[1737838171767,0.03,258.57,258.49,4.25519429]
[1737838175074,0.03,258.57,258.53,20.0]
[1737838175257,0.03,258.66,258.58,23.776884]
[1737838175460,0.03,258.66,258.61,20.0]
[1737838175764,0.03,258.66,258.62,0.38657848]
[1737838177146,0.03,258.66,258.63,3.8665]
[1737838177346,0.03,258.66,258.5,0.38655584]
[1737838178183,0.03,258.66,258.53,20.0]
[1737838179274,0.03,258.66,258.57,20.0]
[1737838180690,0.03,258.66,258.54,0.38672829]
[1737838181049,0.03,258.66,258.56,20.0]
[1737838182051,0.03,258.66,258.5,3.8683]
[1737838182267,80.9,258.65,258.51,0.38674383]
[1737838182681,80.9,258.65,258.52,20.0]
[1737838183678,3.8663,258.64,258.52,20.0]
[1737838185693,80.9,258.63,258.52,20.0]
[1737838185993,3.8666,258.62,258.52,20.0]
[1737838191888,3.8666,258.62,258.52,20.38674129]
[1737838192907,3.8966,258.62,258.52,20.38674129]
[1737838197876,6.6278,258.6,258.51,0.063]
[1737838198077,23.776884,258.58,258.51,0.063]
[1737838198395,4.57994022,258.57,258.51,0.063]
[1737838198572,1.6414,258.56,258.51,0.063]
[1737838200096,3.8677,258.55,258.51,0.063]
[1737838200297,6.6278,258.54,258.51,0.063]
[1737838200497,80.9,258.53,258.51,0.063]
[1737838200800,1.6414,258.48,258.42,0.063]
[1737838201105,80.9,258.47,258.42,0.063]
[1737838201776,3.869,258.46,258.42,0.063]
[1737838206003,6.6011,258.44,258.22,7.9053]
[1737838206300,1.6005,258.38,258.2,3.8729]
[1737838206602,80.9,258.37,258.2,3.8729]
[1737838206898,80.9,258.36,258.21,23.776884]
[1737838207505,3.8707,258.35,258.21,23.776884]
[1737838207994,3.8707,258.35,258.2,3.8729]
[1737838208492,3.8707,258.35,258.21,23.776884]
[1737838209104,3.8707,258.35,258.23,20.0]
[1737838209395,6.6011,258.34,258.23,20.0]
[1737838209599,80.9,258.33,258.17,20.38721335]
[1737838209787,80.9,258.32,258.16,0.063]
[1737838210712,104.676884,258.31,258.16,0.063]
[1737838211006,1.5626,258.29,258.16,0.063]
[1737838211383,3.8717,258.28,258.16,3.9365]
[1737838213406,3.8717,258.28,258.17,0.38728923]
[1737838214405,3.8717,258.28,258.16,3.9365]
[1737838215381,84.7719,258.27,258.16,3.9365]
[1737838215788,84.7719,258.27,258.16,0.063]
[1737838216004,80.9,258.26,258.16,0.063]
[1737838216584,80.9,258.26,258.17,20.0]
[1737838218411,80.9,258.26,258.18,3.8732]
[1737838219105,1.5626,258.29,258.22,20.0]
[1737838220104,80.9,258.33,258.22,20.0]
[1737838220307,80.9,258.33,258.26,20.0]
[1737838221802,80.9,258.33,258.27,3.8719]
[1737838228913,80.9,258.33,258.26,20.0]
[1737838229799,80.9,258.33,258.26,23.8719]
[1737838230098,80.9,258.33,258.26,24.2590187]
[1737838230924,80.9,258.33,258.26,23.8719]
[1737838231212,80.9,258.33,258.27,0.38711885]
[1737838231419,80.9,258.38,258.34,20.0]
[1737838231719,6.5557,258.39,258.34,20.0]
[1737838232515,6.5557,258.39,258.34,23.8708]
[1737838237218,1.5626,258.41,258.34,23.8708]
[1737838237419,84.7996,258.42,258.34,23.8708]
[1737838237420,80.93,258.42,258.35,0.38702772]
[1737838238419,80.93,258.42,258.38,20.0]
[1737838239511,80.93,258.42,258.39,3.8701]
[1737838239702,0.03,258.42,258.4,23.776884]
[1737838239911,0.03,258.42,258.41,0.38692065]
[1737838241505,0.03,258.42,258.41,24.25672065]
[1737838242401,0.03,258.42,258.41,48.03360465]
[1737838243937,0.03,258.51,258.45,20.0]
[1737838244104,0.03,258.51,258.49,20.0]
[1737838244925,0.03,258.51,258.5,0.38679309]
[1737838245245,0.03,258.51,258.49,20.0]
[1737838246340,0.03,258.51,258.5,0.38677254]
[1737838247138,0.03,258.51,258.5,24.16365654]
[1737838251825,0.03,258.51,258.43,3.8695]
[1737838252008,0.03,258.51,258.44,0.38682338]
[1737838252215,0.03,258.51,258.48,20.0]
[1737838254062,0.03,258.51,258.43,3.8694]
[1737838254840,0.03,258.51,258.44,20.0]
[1737838255714,0.03,258.51,258.44,23.8693]
[1737838258748,0.03,258.51,258.44,20.0]
[1737838258955,0.03,258.51,258.42,0.063]
[1737838259429,6.2708,258.49,258.42,0.063]
[1737838259639,1.5537,258.48,258.42,0.063]
[1737838260553,3.8689,258.47,258.42,0.063]
[1737838260862,1.0,258.45,258.42,0.063]
[1737838261176,2.0,258.45,258.42,0.063]
[1737838261463,80.9,258.46,258.42,0.063]
[1737838262863,3.8692,258.45,258.42,0.063]
[1737838266535,20.0,258.43,258.42,0.063]
[1737838268545,23.8695,258.43,258.42,0.063]
[1737838269059,23.8695,258.43,258.42,0.0001]
[1737838271867,3.8695,258.43,258.42,0.0001]
[1737838277242,0.03,258.45,258.42,0.0001]
[1737838277575,3.8993,258.45,258.42,0.0001]
[1737838278443,0.03,258.45,258.42,0.0001]
[1737838285992,20.0,258.43,258.42,0.0001]
[1737838287495,23.8695,258.43,258.42,0.0001]
[1737838293191,3.8695,258.43,258.42,0.0001]
[1737838294178,0.03,258.45,258.42,0.0001]
[1737838295281,0.03,258.45,258.43,1.6633]
[1737838295664,0.03,258.45,258.44,20.38685808]
[1737838296377,0.03,258.45,258.44,24.25615808]
[1737838297120,0.03,258.45,258.44,23.8693]
[1737838301678,0.03,258.45,258.44,48.03305827]
[1737838303015,0.03,258.51,258.48,20.0]
[1737838303181,0.03,258.51,258.49,24.16364302]
[1737838303696,0.03,258.51,258.5,3.8684]
[1737838304601,0.03,258.51,258.5,27.645284]
[1737838306709,0.03,258.51,258.48,3.8686]
[1737838307405,0.03,258.51,258.49,23.776884]
[1737838307783,0.03,258.51,258.48,44.1636593]
[1737838307994,0.03,258.51,258.49,3.8685]
[1737838310006,0.03,258.51,258.47,3.8688]
[1737838311404,0.03,258.51,258.48,20.0]
[1737838312315,0.03,258.51,258.45,28.03268533]
[1737838312493,0.03,258.51,258.45,3.869]
[1737838312693,0.03,258.51,258.46,20.0]
[1737838313098,0.03,258.51,258.45,0.063]
[1737838313715,0.03,258.51,258.45,20.063]
[1737838314730,0.03,258.51,258.46,20.0]
[1737838315397,0.03,258.51,258.45,3.9321]
[1737838316102,0.03,258.51,258.45,0.063]
[1737838316308,0.03,258.51,258.47,20.0]
[1737838317109,0.03,258.51,258.45,3.9321]
[1737838319725,0.03,258.51,258.45,0.063]
[1737838331168,3.8983,258.51,258.45,0.063]
[1737838336550,6.304,258.5,258.45,0.063]
[1737838337865,3.8686,258.49,258.45,0.063]
[1737838338865,80.9,258.48,258.45,0.063]
[1737838339964,3.8689,258.47,258.45,0.063]
[1737838340362,80.9,258.46,258.45,0.063]
[1737838340770,80.9,258.46,258.45,0.0001]
[1737838341148,82.4051,258.46,258.45,0.0001]
[1737838341663,20.0,258.43,258.42,0.0001]
[1737838341966,21.0,258.43,258.42,0.0001]
[1737838343074,24.8695,258.43,258.42,0.0001]
[1737838343668,55.950384,258.43,258.42,0.0001]
[1737838346448,54.950384,258.43,258.42,0.0001]
[1737838346672,31.1735,258.43,258.42,0.0001]
[1737838348377,32.1735,258.43,258.42,0.0001]
[1737838355080,55.950384,258.43,258.42,0.0001]
[1737838355582,1.0,258.39,258.24,1.5316]
[1737838355881,21.0,258.39,258.24,1.5316]
[1737838357053,20.0,258.38,258.24,1.5316]
[1737838357252,13.5464,258.37,258.24,1.5316]
[1737838357656,13.5464,258.37,258.24,21.5316]
[1737838357876,13.5464,258.37,258.2,23.776884]
[1737838358078,14.5464,258.37,258.19,3.9359]
[1737838358285,20.0,258.34,258.19,3.9359]
[1737838358677,20.0,258.34,258.19,0.063]
[1737838358869,20.0,258.34,258.2,20.0]
[1737838359064,20.0,258.34,258.21,20.0]
[1737838359271,13.5485,258.33,258.21,20.0]
[1737838359471,80.9,258.32,258.21,20.0]
[1737838359786,81.9,258.32,258.19,0.063]
[1737838360883,80.9,258.32,258.24,0.063]
[1737838361459,20.0,258.28,258.19,0.063]
[1737838361658,1.0,258.26,258.19,0.063]
[1737838361883,85.47994022,258.25,258.19,0.063]
[1737838362980,13.5532,258.24,258.19,0.063]
[1737838363889,20.0,258.22,258.19,0.063]
[1737838366095,3.8728,258.21,258.19,0.063]
[1737838366791,80.9,258.2,258.19,0.063]
[1737838366967,3.8728,258.21,258.19,0.063]
[1737838372000,23.8728,258.21,258.19,0.063]
[1737838373596,20.0,258.2,258.19,0.063]
[1737838377776,23.776884,258.2,258.19,0.063]
[1737838377982,23.776884,258.2,258.08,0.063]
[1737838377983,23.776884,258.17,258.08,0.063]
[1737838378200,20.0,258.16,258.08,0.063]
[1737838379494,3.8737,258.15,258.08,0.063]
[1737838381927,3.874,258.13,258.08,0.063]
[1737838382126,80.9,258.12,258.08,0.063]
[1737838385812,80.9,258.12,258.08,3.9377]
[1737838386436,0.03,258.17,258.09,23.776884]
[1737838386639,0.03,258.17,258.09,24.16429322]
[1737838386846,0.03,258.17,258.12,20.0]
[1737838387511,0.03,258.17,258.13,3.874]
[1737838393348,0.03,258.17,258.12,20.0]
[1737838394557,0.03,258.17,258.12,23.874]
[1737838396052,0.03,258.17,258.13,25.327084]
[1737838396255,0.03,258.17,258.13,25.71443249]
[1737838396429,0.03,258.17,258.16,43.776884]
[1737838397258,0.03,258.17,258.16,47.650384]
[1737838404981,0.03,258.24,258.16,47.650384]
[1737838405182,0.03,258.24,258.23,20.0]
[1737838405354,0.03,258.24,258.23,44.16403895]
[1737838406456,0.03,258.24,258.23,48.03653895]
[1737838409097,0.03,258.24,258.23,47.97752905]
[1737838418104,80.9,258.39,258.27,20.0]
[1737838418310,80.9,258.39,258.3,23.776884]
[1737838418615,80.9,258.38,258.17,7.949]
[1737838418905,80.9,258.37,258.18,3.8732]
[1737838419490,80.9,258.37,258.24,20.0]
[1737838419693,80.9,258.36,258.24,20.0]
[1737838419999,80.9,258.36,258.25,23.776884]
[1737838420514,3.8707,258.35,258.25,23.776884]
[1737838420809,3.8707,258.35,258.24,3.8722]
[1737838421311,3.8707,258.35,258.26,20.0]
[1737838424908,80.9,258.36,258.31,23.776884]
[1737838425088,82.5592,258.4,258.31,23.776884]
[1737838426513,80.9,258.4,258.34,20.0]
[1737838428917,80.9,258.4,258.34,23.8708]
[1737838429129,3.8996,258.43,258.34,23.8708]
[1737838430227,0.03,258.43,258.35,23.776884]
[1737838431519,0.03,258.43,258.35,27.647484]
[1737838432514,0.03,258.43,258.35,28.03446559]
[1737838434743,0.03,258.43,258.35,27.647484]
[1737838434938,0.03,258.43,258.29,3.8716]
[1737838435232,80.9,258.42,258.29,3.8716]
[1737838436340,80.9,258.42,258.3,23.776884]
[1737838436341,3.8698,258.41,258.3,23.776884]
[1737838440942,80.9,258.4,258.3,23.776884]
[1737838441143,3.8701,258.39,258.3,23.776884]
[1737838441645,3.8701,258.39,258.3,27.648284]
[1737838442142,80.9,258.4,258.33,20.0]
[1737838442520,80.9,258.4,258.34,23.776884]
[1737838443149,80.9,258.4,258.35,3.8707]
[1737838444851,80.9,258.4,258.36,3.8705]
[1737838445244,80.9,258.4,258.36,23.8705]
[1737838445954,80.9,258.4,258.36,3.8705]
[1737838446653,0.03,258.43,258.38,23.776884]
[1737838447023,0.03,258.43,258.39,20.0]
[1737838447221,0.03,258.43,258.4,23.776884]
[1737838452654,0.03,258.43,258.35,5.4289]
[1737838452828,0.03,258.43,258.3,0.38692676]
[1737838453150,0.03,258.43,258.31,20.0]
[1737838453359,0.03,258.43,258.29,3.8716]
[1737838453657,0.03,258.43,258.3,23.776884]
[1737838453871,0.03,258.43,258.33,20.0]
[1737838454164,3.8995,258.43,258.33,20.0]
[1737838455064,3.8698,258.41,258.3,27.648284]
[1737838455243,3.8698,258.41,258.28,1.5583]
[1737838455551,80.9,258.4,258.3,20.0]
[1737838455747,80.9,258.4,258.28,1.5583]
[1737838456151,80.9,258.4,258.3,20.0]
[1737838456660,3.8701,258.39,258.3,20.0]
[1737838457452,3.8701,258.39,258.27,3.8718]
[1737838457755,3.8701,258.39,258.28,23.776884]
[1737838458331,3.8701,258.39,258.26,20.0]
[1737838458752,13.5453,258.39,258.26,20.0]
[1737838459659,80.9,258.38,258.24,0.063]
[1737838459847,80.9,258.37,258.25,20.0]
[1737838460161,80.9,258.37,258.24,0.063]
[1737838460747,80.9,258.37,258.25,20.0]
[1737838461361,80.9,258.37,258.24,0.063]
[1737838461751,3.8705,258.36,258.24,0.063]
[1737838462365,3.8705,258.36,258.25,20.0]
[1737838464764,80.9,258.35,258.25,20.0]
[1737838465854,87.2961,258.35,258.25,20.0]
[1737838466661,3.8708,258.34,258.25,20.0]
[1737838467047,1.5303,258.32,258.24,0.063]
[1737838467369,80.9,258.31,258.24,0.063]
[1737838467555,6.3961,258.29,258.24,0.063]
[1737838467761,80.9,258.28,258.24,0.063]
[1737838468572,80.9,258.27,258.24,0.063]
[1737838468880,20.0,258.25,258.24,0.063]
[1737838469344,23.872,258.26,258.24,0.063]
[1737838469552,20.0,258.25,258.24,0.063]
[1737838472075,3.872,258.26,258.24,0.063]
[1737838474184,3.8717,258.28,258.24,0.063]
[1737838485465,3.9017,258.28,258.24,0.063]
[1737838486494,3.872,258.26,258.24,0.063]
[1737838486673,20.0,258.25,258.24,0.0001]
[1737838487074,21.0,258.25,258.12,0.063]
[1737838487277,1.0,258.23,258.12,0.063]
[1737838487492,1.38226532,258.23,258.12,0.063]
[1737838487694,20.0,258.21,258.12,0.063]
[1737838488612,33.5553,258.2,258.12,0.063]
[1737838489984,3.8732,258.18,258.12,0.063]
[1737838490185,80.9,258.17,258.12,0.063]
[1737838493203,3.8735,258.16,258.12,0.063]
[1737838494485,84.7735,258.17,258.12,0.063]
[1737838494819,80.9,258.17,258.12,0.063]
[1737838497103,3.8728,258.21,258.12,0.063]
[1737838497322,3.8728,258.21,258.13,1.5898]
[1737838501126,13.5548,258.21,258.12,0.063]
[1737838501331,80.9,258.2,258.12,0.063]
[1737838501709,105.676884,258.19,258.12,0.063]
[1737838501931,106.44141464,258.19,258.12,0.063]
[1737838502229,110.25682422,258.19,258.12,0.063]
[1737838504012,13.5563,258.18,258.12,0.063]
[1737838506343,3.8735,258.16,258.12,0.063]
[1737838506721,3.8735,258.16,258.08,0.063]
[1737838506722,20.0,258.12,258.08,0.063]
[1737838506920,80.9,258.11,258.08,0.063]
[1737838510939,80.9,258.11,258.08,3.9377]
[1737838511541,80.9,258.11,258.08,0.063]
[1737838512242,3.8735,258.16,258.08,0.063]
[1737838513144,3.8732,258.18,258.08,0.063]
[1737838513344,80.9,258.17,258.08,0.063]
[1737838514144,84.7735,258.17,258.08,0.063]
[1737838518136,80.9,258.16,258.08,0.063]
[1737838518543,3.8737,258.15,258.08,0.063]
[1737838524143,3.874,258.13,258.08,0.063]
[1737838528656,80.9,258.14,258.09,21.5748]
[1737838528959,0.03,258.17,258.09,21.5748]
[1737838529126,0.03,258.17,258.1,23.776884]
[1737838531152,0.03,258.17,258.09,27.8838]
[1737838531362,0.03,258.17,258.09,1.5748]
[1737838532947,80.9,258.16,258.09,1.5748]
[1737838533148,3.8737,258.15,258.09,1.5748]
[1737838538090,80.9,258.14,258.09,1.5748]
[1737838539961,0.03,258.17,258.09,1.5748]
[1737838540154,0.03,258.17,258.09,5.4493]
[1737838540355,0.03,258.17,258.1,24.16425886]
[1737838540558,0.03,258.17,258.13,20.0]
[1737838540762,0.03,258.17,258.1,24.16425886]
[1737838540763,0.03,258.17,258.14,20.0]
[1737838543371,0.03,258.17,258.14,23.8737]
[1737838543888,0.03,258.17,258.15,23.776884]
[1737838544091,0.03,258.28,258.23,20.0]
[1737838544387,0.03,258.28,258.27,20.0]
[1737838544588,0.03,258.28,258.27,43.776884]
[1737838545762,0.03,258.28,258.27,47.648784]
[1737838545955,6.03510304,258.34,258.31,20.0]
[1737838546163,6.06510304,258.43,258.32,24.16391749]
[1737838546780,6.06510304,258.43,258.36,20.0]
[1737838548862,0.03,258.43,258.36,20.0]
[1737838549061,0.03,258.43,258.37,0.38696198]
[1737838551587,0.03,258.43,258.36,20.0]
[1737838555406,0.03,258.43,258.33,7.7988]
[1737838555568,80.9,258.42,258.33,1.5428]
[1737838556870,3.8698,258.41,258.33,1.5428]
[1737838559803,80.9,258.4,258.33,1.5428]
[1737838561019,3.8701,258.39,258.33,1.5428]
[1737838563720,3.8701,258.39,258.3,20.0]
[1737838563895,80.9,258.38,258.3,20.0]
[1737838564095,80.9,258.38,258.31,20.0]
[1737838565317,3.8704,258.37,258.31,20.0]
[1737838568024,3.8704,258.37,258.27,1.99288179]
[1737838568225,3.8704,258.37,258.27,1.6058]
[1737838568599,80.9,258.36,258.27,1.6058]
[1737838568800,80.9,258.35,258.27,0.063]
[1737838570104,3.8708,258.34,258.27,0.063]
[1737838574616,80.9,258.33,258.27,0.063]
[1737838574817,80.9,258.32,258.27,0.063]
[1737838575017,3.8713,258.31,258.27,0.063]
[1737838580236,80.9,258.3,258.27,0.063]
[1737838582445,3.8716,258.29,258.27,0.063]
[1737838582646,84.7716,258.29,258.27,0.063]
[1737838586445,80.9,258.28,258.27,0.063]
[1737838592442,80.9,258.31,258.27,0.063]
[1737838598460,0.03,258.32,258.28,0.38715936]
[1737838598841,0.03,258.32,258.28,20.38715936]
[1737838599357,0.03,258.32,258.28,24.16404336]
[1737838599660,0.03,258.32,258.3,20.0]
[1737838599957,0.03,258.32,258.31,4.25834723]
[1737838600455,0.03,258.32,258.31,48.03523123]
[1737838604429,0.03,258.32,258.31,56.05933123]
[1737838605127,0.03,258.32,258.31,49.59073123]
[1737838605564,0.03,258.32,258.31,1.5555]
[1737838605743,0.03,258.32,258.29,3.8715]
[1737838608435,0.03,258.32,258.29,4.25856284]
[1737838609365,0.03,258.32,258.29,3.8715]
[1737838615774,0.03,258.32,258.3,20.38706984]
[1737838616559,0.03,258.32,258.28,20.0]
[1737838617163,0.03,258.32,258.27,0.063]
[1737838617945,80.9,258.31,258.27,0.063]
[1737838619464,84.7714,258.3,258.27,0.063]
[1737838619658,80.9,258.29,258.27,0.063]
[1737838621672,3.8717,258.28,258.27,0.063]
[1737838625068,6.636,258.32,258.27,0.063]
[1737838625267,3.8713,258.31,258.27,0.063]
[1737838625879,0.03,258.29,258.27,0.063]
[1737838632265,20.0,258.17,258.08,0.063]
[1737838632451,23.776884,258.19,258.08,0.063]
[1737838632653,43.776884,258.16,258.08,0.063]
[1737838634181,13.5579,258.15,258.08,0.063]
[1737838634688,20.0,258.12,258.08,0.063]
[1737838634891,23.776884,258.11,258.08,0.063]
[1737838635098,104.676884,258.11,258.08,0.063]
[1737838635295,20.0,258.09,258.08,0.063]
[1737838635500,48.66578932,258.09,258.08,0.063]
[1737838635873,55.03758932,258.09,258.08,0.063]
[1737838636380,58.91218932,258.09,258.08,0.063]
[1737838636997,23.776884,258.08,258.01,0.063]
[1737838639611,20.0,258.05,258.01,0.063]
[1737838640104,23.776884,258.06,258.01,0.063]
[1737838642102,47.652184,258.04,258.01,0.063]
[1737838643603,47.652184,258.04,258.03,0.0001]
[1737838644102,104.676884,258.03,258.02,0.0001]
[1737838644400,23.776884,258.01,257.99,0.063]
[1737838646300,27.652784,258.0,257.99,0.063]
[1737838648813,3.8759,258.0,257.99,0.063]
[1737838649480,23.8759,258.0,257.99,0.063]
[1737838650381,6.5349,258.07,257.99,0.063]
[1737838654211,23.776884,258.06,257.99,0.063]
[1737838654390,20.0,258.04,257.99,0.063]
[1737838654797,80.9,258.03,257.99,0.063]
[1737838656916,3.8756,258.02,257.99,0.063]
[1737838660733,80.9,258.01,257.99,0.063]
[1737838661839,84.7758,258.01,257.99,0.063]
[1737838662033,84.8058,258.01,257.99,0.063]
[1737838665641,80.9,258.0,257.99,0.063]
[1737838666553,104.676884,258.0,257.99,0.063]
[1737838669459,80.9,258.0,257.99,0.063]
[1737838669754,3.9058,258.01,257.99,0.063]
[1737838670848,0.03,258.01,257.99,0.063]
[1737838678538,27.652784,258.0,257.99,0.0001]
[1737838678764,23.776884,257.99,257.97,0.063]
[1737838678973,4.88890532,257.98,257.97,0.063]
[1737838679663,85.78890532,257.98,257.97,0.063]
[1737838680359,80.9,257.98,257.97,0.063]
[1737838680672,84.7762,257.98,257.97,0.063]
[1737838681369,80.9,257.98,257.97,0.063]
[1737838681571,0.03,258.01,257.97,0.063]
[1737838681754,0.03,258.01,257.98,1.6235]
[1737838683280,0.03,258.01,257.98,5.4997]
[1737838684282,0.03,258.01,257.98,1.6235]
[1737838684863,80.9,258.0,257.97,0.063]
[1737838685075,80.9,257.99,257.97,0.063]
[1737838685482,80.9,257.98,257.97,0.063]
[1737838686456,20.0,257.98,257.97,0.063]
[1737838687770,43.776884,257.98,257.97,0.063]
[1737838687988,43.776884,257.98,257.97,0.0001]
[1737838688688,47.653084,257.98,257.97,0.0001]
[1737838690175,3.8762,257.98,257.97,0.0001]
[1737838690691,23.8762,257.98,257.97,0.0001]
[1737838693795,48.653084,257.98,257.97,0.0001]
[1737838693985,53.89217153,257.98,257.97,0.0001]
[1737838694707,64.58277153,257.98,257.92,0.063]
[1737838695019,23.776884,257.93,257.82,0.063]
[1737838695610,23.776884,257.91,257.82,0.063]
[1737838696175,3.8774,257.9,257.82,0.063]
[1737838699423,80.9,257.89,257.82,0.063]
[1737838700219,80.9,257.89,257.82,3.9415]
[1737838701024,80.9,257.89,257.83,20.38782137]
[1737838702702,80.9,257.89,257.84,3.8783]
[1737838705832,80.9,257.89,257.82,0.063]
[1737838706017,84.7776,257.89,257.82,0.063]
[1737838714252,80.9,257.88,257.82,0.063]
[1737838715839,3.8779,257.87,257.82,0.063]
[1737838716041,80.9,257.86,257.82,0.063]
[1737838716349,80.9,257.85,257.82,0.063]
[1737838718749,84.7782,257.85,257.82,0.063]
[1737838719925,84.67588861,257.85,257.82,0.063]
[1737838720122,80.79768861,257.84,257.82,0.063]
[1737838721950,84.67598861,257.84,257.82,0.063]
[1737838722732,84.67598861,257.84,257.7,10.08890696]
[1737838722733,104.57457261,257.83,257.73,1.6469]
[1737838722931,80.79768861,257.82,257.73,0.063]
[1737838723138,80.79768861,257.81,257.73,3.943]
[1737838724757,3.8789,257.8,257.73,0.063]
[1737838726159,80.79768861,257.79,257.73,0.063]
[1737838728461,3.8792,257.78,257.73,0.063]
[1737838732088,84.67718861,257.77,257.73,0.063]
[1737838732396,80.79768861,257.76,257.73,0.063]
[1737838732991,80.79768861,257.85,257.73,3.9429]
[1737838733172,80.79768861,257.85,257.74,0.38789023]
[1737838733357,0.03,257.82,257.74,0.38789023]
[1737838733562,79.70047381,257.85,257.75,1.584]
[1737838734374,79.70047381,257.85,257.76,3.8795]
[1737838734582,79.70047381,257.85,257.76,4.26738469]
[1737838736787,79.70047381,257.85,257.78,20.0]
[1737838736990,79.70047381,257.85,257.78,23.8791]
[1737838738062,79.70047381,257.88,257.79,0.38784055]
[1737838739392,79.70047381,257.88,257.8,3.8789]
[1737838740196,83.57837381,257.88,257.76,4.2672285]
[1737838740375,83.57837381,257.88,257.76,3.8794]
[1737838740695,83.57837381,257.88,257.78,20.0]
[1737838741677,79.70047381,257.88,257.79,0.38785806]
[1737838742683,79.70047381,257.88,257.81,20.0]
[1737838742893,79.70047381,257.88,257.82,1.97178092]
[1737838743076,0.03,257.92,257.82,1.97178092]
[1737838744002,3.9071,257.92,257.82,1.584]
[1737838745290,3.9071,257.92,257.83,3.8785]
[1737838746295,0.03,257.92,257.83,3.8785]
[1737838746789,0.03,257.92,257.85,20.0]
[1737838747095,0.03,257.92,257.84,0.38777005]
[1737838747295,0.03,257.92,257.85,3.8782]
[1737838748794,0.03,257.92,257.87,20.0]
[1737838749094,0.03,257.92,257.88,0.38768994]
[1737838749893,0.03,257.92,257.89,3.8776]
[1737838752592,0.03,257.92,257.9,23.776884]
[1737838752772,0.03,257.92,257.91,1.6565]
[1737838753899,0.03,257.92,257.91,25.433384]
[1737838754275,0.03,257.92,257.91,29.310684]
[1737838754471,0.03,257.92,257.91,29.69830174]
[1737838760703,0.03,257.92,257.91,29.310684]
[1737838761218,0.03,257.92,257.89,3.8775]
[1737838761717,0.03,257.92,257.87,23.8778]
[1737838763382,0.03,257.92,257.87,20.0]
[1737838765888,0.03,257.92,257.86,23.878]
[1737838775220,0.03,257.92,257.87,20.0]
[1737838776722,0.03,257.92,257.84,1.5223]
[1737838776899,79.73047381,257.92,257.87,20.0]
[1737838784310,79.73047381,257.92,257.84,1.5223]
[1737838784510,79.73047381,257.92,257.87,20.0]
[1737838786030,79.73047381,257.92,257.85,4.26592735]
[1737838789454,79.73047381,257.92,257.87,20.0]
[1737838790754,79.73047381,257.92,257.86,3.878]
[1737838792157,79.73047381,257.92,257.87,20.0]
[1737838793649,0.03,257.92,257.91,20.0]
[1737838794035,0.03,257.92,257.91,23.8773]